[Event "III Menorca Open-A 2024"]
[Site "Ciutadella Menorca"]
[Date "2024.04.06"]
[Round "8.6"]
[White "Yuffa, Daniil"]
[Black "Klimkowski, Jan"]
[Result "1-0"]
[ECO "A13"]
[WhiteElo "2606"]
[BlackElo "2505"]
[Annotator "TA"]
[PlyCount "53"]
[EventDate "2024.04.02"]
[EventType "swiss"]
[EventCountry "ESP"]
[SourceTitle "playchess.com"]
[Source "ChessBase"]
[SourceQuality "1"]
[TimeControl "5400+30"]

{[%evp 14,53,7,6,6,9,4,14,38,20,31,0,14,4,23,18,23,27,28,12,92,113,110,91,104,98,82,80,96,90,116,59,68,68,281,270,6418,6325,5622,5737,5637,4786]} 1. Nf3 {[%emt 0:00:22]} Nf6 {[%emt 0:00:33]} 2. c4 {[%emt 0:00:18]} e6 {[%emt 0:00:07]} 3. g3 {[%emt 0:00:16]} d5 {[%emt 0:00:13]} 4. Bg2 {[%emt 0:00:17]} d4 {[%emt 0:00:21]} 5. O-O {[%emt 0:00:32]} c5 {[%emt 0:00:10]} 6. e3 {[%emt 0:01:31]} Nc6 {[%emt 0:00:14]} 7. exd4 {[%emt 0:00:40]} cxd4 {[%emt 0:00:08]} 8. d3 {[%emt 0:00:41]} Bd6 {[%emt 0:00:16]} 9. Nbd2 {[%emt 0:01:13]} O-O {[%emt 0:00:44]} 10. Ng5 {[%emt 0:00:11]} e5 {[%emt 0:14:58] The position is equal.} 11. a3 {[%emt 0:12:02]} Bg4 {[%emt 0:04:35]} 12. Qe1 {[%emt 0:03:20]} h6 {[%emt 0:07:12]} 13. Nge4 {[%emt 0:04:33]} Nxe4 {[%emt 0:00:41]} 14. Nxe4 {[%emt 0:01:48]} Re8 {[%emt 0:03:28]} 15. b4 {[%emt 0:05:34]} Bf8 {[%emt 0:03:06]} 16. h3 {[%emt 0:05:51]} Be6 {[%emt 0:01:27] [#]} (16... Bf5 $11 {keeps the balance.}) 17. g4 $1 $16 {[%emt 0:04:27]} f5 {[%emt 0:06:31]} 18. gxf5 {[%emt 0:00:06]} Bxf5 {[%emt 0:00:09]} 19. f4 {[%emt 0:02:04]} exf4 {[%emt 0:04:25]} 20. Bxf4 {[%emt 0:00:32] Black must now prevent Qg3.} Qd7 {[%emt 0:07:44]} 21. b5 {[%emt 0:13:22]} Nd8 {[%emt 0:04:23][%cal Od8f7]} 22. Ra2 {[%emt 0:16:27]} (22. Qg3 $16 {Nf6+ is the strong threat.} Bxe4 23. Bxe4 Rxe4 24. dxe4) 22... Nf7 $1 $14 {[%emt 0:05:13][%cal Of7d6]} 23. Qh4 {[%emt 0:06:28]} Ne5 $2 {[%emt 0:09:11] [#] This costs Black the game.} ({Black should try} 23... a6 $14) 24. Bxh6 $1 $18 {[%emt 0:04:48][%cal Oe4f6] Strongly threatening Nf6+!} Nxd3 $2 {[%emt 0:04:11] [#]} (24... Ng6 25. Qg3 Be7) 25. Nf6+ $1 {[%emt 0:01:14][%mdl 512] White is clearly winning.} gxf6 {[%emt 0:00:19]} 26. Bd5+ {[%emt 0:00:14]} Re6 {[%emt 0:02:08]} 27. Rg2+ {[%emt 0:00:37] Weighted Error Value: White=0.08 (flawless) /Black=0.33.  Loses game:     	---       	Black=1      Mistake:       	White=1     	Black=2      Inaccurate:     	White=1     	---        OK:         	White=6     	Black=3      Best:        	---       	Black=2      Strong:       	White=2     	Black=1      Brilliant:      	White=1     	---} ({Weaker is} 27. Bxe6+ Qxe6 28. Rg2+ Kf7 $18) 1-0

[Event "III Menorca Open-A 2024"]
[Site "Ciutadella Menorca"]
[Date "2024.04.06"]
[Round "8.7"]
[White "Pranav Anand"]
[Black "Nihal Sarin"]
[Result "1-0"]
[ECO "C88"]
[WhiteElo "2519"]
[BlackElo "2698"]
[Annotator "TA"]
[PlyCount "197"]
[EventDate "2024.04.02"]
[EventType "swiss"]
[EventCountry "ESP"]
[SourceTitle "playchess.com"]
[Source "ChessBase"]
[SourceQuality "1"]
[TimeControl "5400+30"]

{[%evp 20,197,36,17,37,16,16,11,7,18,24,0,0,0,0,0,0,0,0,0,14,12,17,10,15,0,0,0,14,0,2,0,0,0,24,0,26,0,10,0,0,0,0,0,33,22,30,35,27,-3,69,70,161,150,133,144,218,143,144,141,137,161,157,151,160,110,293,293,272,304,297,293,396,374,465,465,462,441,404,400,570,583,592,590,556,541,587,666,666,670,1332,929,5616,537,527,521,29942,843,29947,29952,12848,29943,6119,7025,7814,7814,5585,544,658,449,863,0,494,0,29966,29964,29955,9050,29963,29964,29962,29964,5393,404,347,485,532,532,538,490,664,623,29981,822,810,780,679,751,1426,1442,1691,1393,1675,1304,1931,1768,29943,12798,6697,6490,29955,29953,29955,10677,12718,0,29962,29963,29968,29969,29972,29973,29972,29973,29972,29973,29976,29977,29977,29975,29973,29972,29987,29988,29989,29990,29990,29991,29991,29991]} 1. e4 {[%emt 0:00:05]} e5 {[%emt 0:08:18]} 2. Nf3 {[%emt 0:00:13]} Nc6 {[%emt 0:00:14]} 3. Bb5 {[%emt 0:00:34]} a6 {[%emt 0:01:14]} 4. Ba4 {[%emt 0:00:05]} Nf6 {[%emt 0:00:04]} 5. O-O {[%emt 0:00:06]} Be7 {[%emt 0:00:10]} 6. Re1 {[%emt 0:00:19]} b5 {[%emt 0:00:11]} 7. Bb3 {[%emt 0:00:05]} O-O {[%emt 0:00:05]} 8. a4 {[%emt 0:00:03]} Rb8 {[%emt 0:00:28]} 9. axb5 {[%emt 0:01:48]} axb5 {[%emt 0:00:24]} 10. c3 {[%emt 0:00:06]} d6 {[%emt 0:11:50]} 11. h3 {[%emt 0:03:30]} b4 {[%emt 0:07:58]} 12. d4 {[%emt 0:01:18]} bxc3 {[%emt 0:00:30]} 13. bxc3 {[%emt 0:00:20]} exd4 {[%emt 0:00:52] The position is equal.} 14. Nxd4 {[%emt 0:08:09]} Bb7 {[%emt 0:06:48]} 15. Nf5 {[%emt 0:07:48]} Ne5 {[%emt 0:00:51]} 16. Bc2 {[%emt 0:02:15]} Re8 {[%emt 0:00:48]} 17. Bg5 {[%emt 0:03:53]} h6 {[%emt 0:02:25]} 18. Bh4 {[%emt 0:01:10]} Ng6 {[%emt 0:00:50]} 19. Bg3 {[%emt 0:00:07]} Nd7 {[%emt 0:01:10]} 20. Nxe7+ {[%emt 0:02:29]} Qxe7 {[%emt 0:01:02]} 21. Nd2 {[%emt 0:00:12]} Qf6 {[%emt 0:06:01]} 22. Re3 {[%emt 0:02:12]} Nc5 {[%emt 0:02:52]} 23. Qe1 {[%emt 0:11:03]} Re7 {[%emt 0:06:30]} 24. Qe2 {[%emt 0:08:16]} Bc6 {[%emt 0:02:47]} 25. Re1 {[%emt 0:01:59]} Rbe8 {[%emt 0:01:21]} 26. Qh5 {[%emt 0:03:04]} Qg5 {[%emt 0:01:24]} 27. Qd1 {[%emt 0:02:17]} Qf6 {[%emt 0:01:27]} 28. Qh5 {[%emt 0:00:47]} Re6 {[%emt 0:12:53]} 29. Bb1 {[%emt 0:03:25]} R6e7 {[%emt 0:05:06]} 30. Bc2 {[%emt 0:11:08]} Qg5 {[%emt 0:01:03]} 31. Qd1 {[%emt 0:00:10]} h5 {[%emt 0:00:55][%cal Bh6h5,Bh5h4][%mdl 32]} 32. Nf3 {[%emt 0:05:54]} Qh6 {[%emt 0:00:29]} 33. Qd4 {[%emt 0:01:19]} h4 {[%emt 0:01:40]} 34. Bh2 {[%emt 0:00:02]} (34. Bxd6 $5 Ne6 (34... cxd6 35. Qxd6 Bxe4 36. Qxc5 $14) 35. Qc4 cxd6 36. Qxc6 $11) 34... f6 {[%emt 0:01:00]} ({Black should try} 34... Bxe4 $11 35. Bxd6 (35. Bxe4 Rxe4 36. Rxe4 Nxe4 $17) (35. Rxe4 $2 Nxe4 36. Rd1 Ng5 $19) 35... cxd6 36. Bxe4 Nxe4 37. Rxe4 Rxe4 38. Rxe4 Qc1+ 39. Kh2 Rxe4 40. Qxe4 Qxc3) 35. Bxd6 $1 $14 {[%emt 0:03:26]} Ne6 {[%emt 0:02:12]} ({Black should play} 35... cxd6 $14 36. Qxd6 Ba4 (36... Nxe4 $2 37. Qxc6 Kh8 38. Rxe4 $18) 37. Bxa4 Nxa4) 36. Qc4 $18 {[%emt 0:00:31]} cxd6 {[%emt 0:00:04]} 37. Qxc6 {[%emt 0:00:06]} Nef4 {[%emt 0:00:03]} (37... Ne5 $16 38. Nxe5 (38. Qxd6 Nc4 $16) 38... dxe5) 38. Bb3+ {[%emt 0:05:33]} Kh7 {[%emt 0:01:06] [#]} 39. Bf7 $1 {[%emt 0:00:26][%mdl 512]} Rd8 {[%emt 0:02:59]} 40. Bxg6+ {[%emt 0:00:02]} Nxg6 {[%emt 0:00:28]} 41. Qd5 {[%emt 0:00:18]} Rc7 {[%emt 0:00:54]} 42. Rd1 {[%emt 0:02:02] White is more active.} (42. Nd4 $142 {Ne6 is the strong threat.} Rc5 43. Qf7) 42... Rc5 $2 {[%emt 0:03:05]} (42... Rdc8 $16 {might work better.}) 43. Qxc5 {[%emt 0:01:43]} dxc5 {[%emt 0:00:05]} 44. Rxd8 {[%emt 0:00:02]} Nf4 {[%emt 0:01:29]} 45. Kh2 {[%emt 0:00:19]} c4 {[%emt 0:01:46]} 46. Rd4 {[%emt 0:01:24][%cal Bd8d4,Bd4c4,Bc4c5,Bc5h5,Bh5h4,Bh4b4][%mdl 32]} Ne6 {[%emt 0:01:30]} 47. Rxc4 {[%emt 0:00:34]} Qf4+ {[%emt 0:00:06]} 48. Kg1 {[%emt 0:00:05]} Nd8 {[%emt 0:02:00]} 49. Rc5 {[%emt 0:00:41]} Ne6 {[%emt 0:00:11]} (49... Nf7 $142 50. e5 Nxe5 51. Nxe5 fxe5 52. Rcxe5 Qf7) 50. Rh5+ {[%emt 0:00:31]} Kg8 {[%emt 0:00:00]} 51. Rxh4 {[%emt 0:00:29]} Qb8 {[%emt 0:00:18]} 52. e5 {[%emt 0:00:40]} f5 {[%emt 0:00:50]} 53. Rb4 {[%emt 0:00:14]} Qa7 {[%emt 0:00:05]} 54. Nd4 {[%emt 0:01:23]} Nf4 {[%emt 0:00:05]} 55. Nxf5 {[%emt 0:01:33]} Nd5 {[%emt 0:00:11]} 56. Rbe4 {[%emt 0:00:37][%cal Oe5e6]} Nxe3 {[%emt 0:00:58]} 57. Rxe3 {[%emt 0:00:05][%mdl 4096] Endgame. Intending e6 and mate. KQ-KRN} Qf7 {[%emt 0:06:55]} 58. Nd4 {[%emt 0:00:26]} (58. g4 $142 Qe6 59. Nd4 Qa6 60. e6 Qa1+ 61. Kg2 Qa8+ 62. Kh2 g6 63. e7) 58... Qd5 {[%emt 0:00:00]} 59. e6 {[%emt 0:00:11][%cal Be5e6,Be6e7][%mdl 32]} Kf8 {[%emt 0:00:00]} 60. e7+ {[%emt 0:00:22]} Ke8 {[%emt 0:00:00]} 61. h4 {[%emt 0:02:18]} g6 {[%emt 0:00:00]} 62. g3 {[%emt 0:00:10]} Qa5 {[%emt 0:00:00]} 63. Nf3 {[%emt 0:00:37] Hoping for Nd4.} Qd5 {[%emt 0:00:00]} 64. Kg2 {[%emt 0:00:18]} Qc6 {[%emt 0:00:00]} (64... Qb7 $142 65. Re6 Qb1) 65. Kg1 {[%emt 0:00:52] Black must now prevent Nd4.} Qd5 $1 {[%emt 0:00:00]} 66. Nd4 $2 {[%emt 0:00:09]} (66. Ng5 $18) 66... Qb7 $2 {[%emt 0:00:00][%mdl 8192]} (66... Qa5 $11 67. Re6 Qa2) 67. Re6 {[%emt 0:01:54]} Qb1+ {[%emt 0:00:00]} 68. Kh2 {[%emt 0:00:42]} (68. Kg2 $142 Qd3 69. g4 (69. Re3 Qc4 $18) 69... Qd1 70. Rxg6 Kxe7 71. h5 Kf7 72. Nf3 Qe2 73. c4) 68... Qf1 {[%emt 0:00:00]} 69. Re2 {[%emt 0:00:28]} ({Weaker is} 69. Rxg6 Qxf2+ 70. Kh3 Kxe7 $18) 69... Qb1 {[%emt 0:00:00]} 70. Kg2 {[%emt 0:01:04]} Qb7+ {[%emt 0:00:00]} 71. Nf3 {[%emt 0:00:22]} (71. f3 $142 {White threatens Ne6 and mate.} Qb1 72. Re6) 71... Qc6 {[%emt 0:00:00]} 72. Re3 {[%emt 0:00:05]} Qd5 {[%emt 0:00:00]} 73. g4 {[%emt 0:00:03]} Qd7 {[%emt 0:00:00]} 74. Ne5 {[%emt 0:00:34][%csl LRd7,LRg6]} Qd1 {[%emt 0:00:00]} 75. c4 {[%emt 0:00:22]} ({Not} 75. Nxg6 Qxg4+ 76. Rg3 Qe4+ 77. Kh2 Qc2 $11) 75... Qc2 {[%emt 0:00:45]} 76. Kg3 {[%emt 0:01:35]} (76. Nf7 $142 Qd1 77. Re4 Qd7 78. c5 Kxf7 79. e8=Q+ (79. e8=R Qc6 $18) 79... Qxe8 80. Rxe8 Kxe8 81. h5) 76... Kxe7 {[%emt 0:00:56]} 77. Nxg6+ {[%emt 0:00:07]} Kf6 {[%emt 0:00:03]} 78. Ne5 {[%emt 0:00:14]} Kg7 {[%emt 0:00:01]} 79. g5 {[%emt 0:00:26] h5 would now be deadly.} Qc1 {[%emt 0:00:32]} 80. Kg2 {[%emt 0:00:26] Threatens to win with h5.} Qd1 {[%emt 0:00:08]} 81. Re4 {[%emt 0:00:25]} Kh7 {[%emt 0:00:25]} 82. Nf3 {[%emt 0:00:17]} Qc2 {[%emt 0:01:26]} 83. Rg4 {[%emt 0:00:10]} (83. Rf4 $142 Qc1 84. Kg3 Qd1 85. Rd4 Qb1 86. h5 Qb8+ 87. Kg2 Kg8 88. h6) 83... Kg6 {[%emt 0:00:50]} 84. Kg3 {[%emt 0:00:32]} Qf5 {[%emt 0:02:40]} 85. Rf4 {[%emt 0:00:08]} Qc5 {[%emt 0:00:04]} 86. Rf6+ {[%emt 0:01:37]} (86. Nd2 $142 Qb4 87. Nf1 Qd6 88. Ne3 Kh5 89. Nd5 Kg6 90. Kf3 Qd7 91. Rf6+ Kg7 92. Kg3) 86... Kg7 {[%emt 0:00:06]} 87. Rf4 {[%emt 0:00:41]} Kg6 $1 {[%emt 0:00:08]} 88. Nd2 {[%emt 0:00:20] White mates.} Qd6 {[%emt 0:01:42]} 89. Ne4 {[%emt 0:00:11]} Qd3+ {[%emt 0:00:11]} 90. f3 {[%emt 0:00:35]} Qxc4 {[%emt 0:01:03] [#]} 91. h5+ $1 {[%emt 0:00:09][%cal Bh4h5,Bh5h6][%mdl 32]} Kg7 {[%emt 0:00:03]} 92. h6+ {[%emt 0:00:14]} Kg6 {[%emt 0:00:23]} 93. Rf6+ {[%emt 0:00:38]} Kh7 {[%emt 0:00:13]} 94. Rd6 {[%emt 0:00:49]} Qc7 {[%emt 0:01:34]} 95. Kh4 {[%emt 0:00:28]} Qb8 {[%emt 0:02:17]} 96. Kh5 {[%emt 0:00:36]} Kh8 {[%emt 0:00:36]} 97. g6 {[%emt 0:00:36]} Qe8 {[%emt 0:00:01]} 98. Ng5 {[%emt 0:00:27]} Kg8 {[%emt 0:00:09] [#]} 99. Rd8 $3 {[%emt 0:01:26][%mdl 512] Weighted Error Value: White=0.15 (very precise) /Black=0.38.  Loses game:     	---       	Black=2      Mistake:       	White=2     	Black=5      Inaccurate:     	White=3     	Black=7      OK:         	White=29    	Black=18     Best:        	White=2     	Black=1      Strong:       	White=1     	Black=1} 1-0

[Event "III Menorca Open-A 2024"]
[Site "Ciutadella Menorca"]
[Date "2024.04.06"]
[Round "8.8"]
[White "Van Foreest, Jorden"]
[Black "Balakrishnan, Praveen"]
[Result "1-0"]
[ECO "B48"]
[WhiteElo "2672"]
[BlackElo "2500"]
[Annotator "TA"]
[PlyCount "109"]
[EventDate "2024.04.02"]
[EventType "swiss"]
[EventCountry "ESP"]
[SourceTitle "playchess.com"]
[Source "ChessBase"]
[SourceQuality "1"]
[TimeControl "5400+30"]

{[%evp 30,109,74,64,60,75,84,82,75,84,77,78,144,144,159,155,170,162,170,161,186,185,221,223,221,218,208,183,367,166,170,178,175,170,175,165,172,176,229,185,183,85,183,181,177,95,138,139,145,144,135,118,118,114,237,245,237,168,251,251,236,236,283,283,379,346,329,300,481,471,609,607,2054,2002,1876,1802,5051,4608,29973,2012,29983,29984]} 1. e4 {[%emt 0:00:03]} c5 {[%emt 0:06:49]} 2. Nf3 {[%emt 0:00:09]} e6 {[%emt 0:00:05]} 3. d4 {[%emt 0:00:08]} cxd4 {[%emt 0:00:06]} 4. Nxd4 {[%emt 0:00:11]} Nc6 {[%emt 0:00:06]} 5. Nc3 {[%emt 0:00:06]} Qc7 {[%emt 0:00:05]} 6. Be3 {[%emt 0:00:04]} a6 {[%emt 0:00:07]} 7. Bd3 {[%emt 0:00:03]} Nf6 {[%emt 0:00:48]} 8. Qe2 {[%emt 0:01:05]} b5 {[%emt 0:04:07]} 9. Nxc6 {[%emt 0:00:54] B48: Sicilian: Taimanov: 5 Nc3 Qc7 6 Be3 a6 without Be2.} Qxc6 {[%emt 0:02:17]} 10. e5 {[%emt 0:00:44]} Nd5 $146 {[%emt 0:01:16]} ({Predecessor:} 10... b4 11. exf6 bxc3 12. fxg7 Bxg7 13. b3 Bb7 14. f3 d5 15. O-O O-O 16. b4 e5 {½-½ Zhalmakhanov,R (2447)-Sevian,S (2698) FIDE Grand Swiss 2023 (5)}) 11. Be4 {[%emt 0:03:02]} Bb4 {[%emt 0:03:20]} 12. Bd2 {[%emt 0:00:09]} Bxc3 {[%emt 0:00:40]} 13. Bxc3 {[%emt 0:00:04]} Bb7 {[%emt 0:03:37]} 14. Bb4 {[%emt 0:00:13]} Qc4 {[%emt 0:20:24]} 15. Qxc4 {[%emt 0:02:26]} bxc4 {[%emt 0:00:06]} 16. Bd6 {[%emt 0:01:43]} f5 {[%emt 0:04:57]} 17. exf6 {[%emt 0:04:31]} gxf6 {[%emt 0:00:34]} 18. O-O-O {[%emt 0:01:42]} Kf7 {[%emt 0:02:51]} 19. Rd4 {[%emt 0:01:06]} Rac8 {[%emt 0:15:16]} 20. Bf3 {[%emt 0:00:56]} Rhg8 {[%emt 0:08:10]} (20... h5 $142) 21. Rh4 $16 {[%emt 0:00:32]} Rg7 {[%emt 0:04:17]} 22. Rd1 {[%emt 0:02:08]} Ba8 {[%emt 0:03:07]} 23. g3 {[%emt 0:08:45]} Nb6 {[%emt 0:02:45]} 24. Be2 {[%emt 0:05:49]} Bd5 {[%emt 0:03:17]} 25. Bb4 {[%emt 0:08:06]} Rc6 {[%emt 0:00:40]} 26. Bh5+ {[%emt 0:05:45]} Kg8 {[%emt 0:00:07]} 27. Bc3 {[%emt 0:00:19]} e5 {[%emt 0:03:31]} 28. f4 {[%emt 0:06:14]} d6 $2 {[%emt 0:03:30]} (28... e4 29. Re1 Re7) 29. Ba5 {[%emt 0:00:59]} (29. a4 $142 Be6 30. fxe5 (30. Bf3 d5 $18) 30... Nxa4 31. exf6 (31. Rxd6 Rxd6 32. exd6 Nxc3 $18) 31... Nxc3 32. Re1 (32. bxc3 Rg5 $18) (32. fxg7 Nxd1 33. Kxd1 d5 $14) 32... Na2+ 33. Kd1 (33. Kb1 Nc3+ 34. Kc1 d5 $18)) 29... Bg2 $18 {[%emt 0:04:16]} 30. Rd2 {[%emt 0:03:04]} Bh1 {[%emt 0:00:07]} 31. fxe5 {[%emt 0:00:28]} fxe5 {[%emt 0:00:05]} 32. Bxb6 {[%emt 0:02:32]} Rxb6 {[%emt 0:00:05]} 33. Rxc4 {[%emt 0:00:04]} Rgb7 {[%emt 0:01:01]} (33... Re7 $142 34. Rf2 Bd5 35. Rg4+ Rg7) 34. Rf2 {[%emt 0:01:47]} Bd5 {[%emt 0:02:37]} 35. Rc8+ {[%emt 0:01:31]} Kg7 {[%emt 0:00:02]} 36. b3 {[%emt 0:00:04]} Be6 {[%emt 0:01:03]} 37. Ra8 {[%emt 0:04:37]} (37. Re8 $18 d5 38. Kb2) 37... Rb8 {[%emt 0:00:18]} 38. Rxb8 {[%emt 0:01:02]} Rxb8 {[%emt 0:00:04]} 39. c4 {[%emt 0:00:03]} a5 {[%emt 0:02:18]} 40. Rd2 {[%emt 0:00:32]} Rb6 {[%emt 0:00:18]} 41. Kc2 {[%emt 0:01:00]} a4 {[%emt 0:00:53]} (41... Kf6 $16) 42. Bf3 $18 {[%emt 0:00:25]} ({Not} 42. bxa4 Bxc4 43. Kc3 d5 $11) 42... axb3+ {[%emt 0:00:20]} 43. axb3 {[%emt 0:00:05]} Ra6 {[%emt 0:00:04]} (43... Kf6 {was worth a try.} 44. Kc3 Kf5) 44. Kc3 $18 {[%emt 0:00:13]} Kf6 {[%emt 0:00:16]} 45. Bb7 {[%emt 0:00:02]} Rb6 {[%emt 0:01:27]} 46. Be4 {[%emt 0:00:04]} h6 {[%emt 0:00:21]} 47. b4 {[%emt 0:00:54]} Ra6 {[%emt 0:00:16]} 48. Kb3 {[%emt 0:02:17]} Ke7 $2 {[%emt 0:00:27]} (48... Rb6 49. Ra2 h5) 49. b5 $18 {[%emt 0:00:10]} Ra1 {[%emt 0:00:08]} 50. b6 {[%emt 0:02:19]} Ra6 {[%emt 0:01:14]} 51. b7 {[%emt 0:00:07]} Rb6+ {[%emt 0:00:13]} 52. Kc3 {[%emt 0:00:04]} Kd7 {[%emt 0:00:24]} 53. c5 {[%emt 0:00:39]} Rb3+ {[%emt 0:00:31]} 54. Kc2 {[%emt 0:00:05]} Rb5 {[%emt 0:00:23]} 55. Rxd6+ {[%emt 0:00:08]} 1-0

[Event "III Menorca Open-A 2024"]
[Site "Ciutadella Menorca"]
[Date "2024.04.06"]
[Round "8.9"]
[White "Aravindh, Chithambaram VR."]
[Black "Seemann, Jakub"]
[Result "1-0"]
[ECO "D02"]
[WhiteElo "2662"]
[BlackElo "2465"]
[Annotator "TA"]
[PlyCount "85"]
[EventDate "2024.04.02"]
[EventType "swiss"]
[EventCountry "ESP"]
[SourceTitle "playchess.com"]
[Source "ChessBase"]
[SourceQuality "1"]
[TimeControl "5400+30"]

{[%evp 9,85,0,14,0,13,0,0,-13,0,0,0,0,0,0,0,0,0,0,33,30,41,37,15,22,48,42,55,50,47,46,47,37,33,39,53,55,75,71,79,68,123,115,124,123,126,109,114,122,150,137,148,126,128,113,152,104,168,141,162,160,165,135,135,116,159,166,179,199,325,293,492,425,393,266,289,294,252,237]} 1. d4 {[%emt 0:00:18]} Nf6 {[%emt 0:00:48]} 2. Nf3 {[%emt 0:00:12]} d5 {[%emt 0:00:05]} 3. Bf4 {[%emt 0:00:11]} c5 {[%emt 0:00:20]} 4. e3 {[%emt 0:00:06]} Nc6 {[%emt 0:00:07]} 5. Nbd2 {[%emt 0:00:07]} Qb6 {[%emt 0:00:08]} 6. dxc5 {[%emt 0:00:08]} Qxb2 {[%emt 0:00:06]} 7. Rb1 {[%emt 0:00:06]} Qc3 {[%emt 0:00:03][%cal Oe7e6]} 8. Bb5 {[%emt 0:00:13] The position is equal.} g6 {[%emt 0:00:13][%cal Of8g7]} 9. O-O {[%emt 0:01:41]} Bg7 $1 {[%emt 0:00:35]} 10. Nd4 {[%emt 0:00:13]} Bd7 {[%emt 0:07:17]} ({Of course not} 10... Qxc5 $6 11. N2b3 Qb6 12. Na5 Qxa5 13. Nxc6 (13. Bxc6+ $2 {is the wrong capture.} bxc6 14. Be5 O-O $19) 13... bxc6 14. Bxc6+ Bd7 15. Bxa8 $16) 11. N2b3 {[%emt 0:00:09]} O-O {[%emt 0:12:59]} (11... Nxd4 {simplifies} 12. Qxd4 Qxd4 13. Nxd4 O-O) 12. Ne2 $36 {[%emt 0:00:18][%mdl 2048] Black is under pressure.} Qb4 {[%emt 0:00:21]} 13. a4 {[%emt 0:00:08] c3 would now be deadly.} Ne4 {[%emt 0:09:37][%cal Oe7e5]} 14. f3 {[%emt 0:00:27]} Nc3 {[%emt 0:03:03]} 15. Nxc3 {[%emt 0:00:11]} Qxc3 {[%emt 0:02:51]} 16. Qxd5 {[%emt 0:00:15]} Rfd8 {[%emt 0:11:29][%cal Oa7a6] Hoping for ...a6!} 17. Qd3 {[%emt 0:07:46]} Bf5 {[%emt 0:04:28]} 18. Qxc3 {[%emt 0:00:22]} Bxc3 {[%emt 0:00:05]} 19. Bxc6 {[%emt 0:00:48]} bxc6 {[%emt 0:00:21]} 20. e4 {[%emt 0:00:24]} Be6 {[%emt 0:02:33]} 21. Kf2 {[%emt 0:04:11]} Rd7 {[%emt 0:02:39]} 22. Rfd1 {[%emt 0:04:00]} Rad8 {[%emt 0:01:15][%cal Ba8d8,Bd8d7,Bd7c7][%mdl 32]} 23. Rxd7 {[%emt 0:00:38] White leaves nothing to chance now.} Rxd7 {[%emt 0:00:09]} 24. Nc1 $1 {[%emt 0:01:42]} f6 {[%emt 0:11:21]} (24... Bc4 $14) 25. Ne2 $1 $16 {[%emt 0:17:44]} Ba5 {[%emt 0:00:06]} 26. Be3 {[%emt 0:00:07] aiming for Nd4.} Bc4 {[%emt 0:00:21]} 27. Nd4 {[%emt 0:04:06]} Rc7 {[%emt 0:00:07]} 28. f4 {[%emt 0:00:59][%cal Bf3f4,Bf4f5][%mdl 32] White is more active.} Bc3 {[%emt 0:01:43]} 29. Ne2 {[%emt 0:02:03]} Ba5 {[%emt 0:00:19]} 30. f5 {[%emt 0:06:24]} Kf7 {[%emt 0:01:37]} 31. Rb8 {[%emt 0:05:42]} g5 {[%emt 0:03:57] [#]} 32. h4 {[%emt 0:14:10]} h6 {[%emt 0:01:36]} (32... gxh4 $16 {might work better.} 33. Rh8 Kg7) 33. Nd4 {[%emt 0:01:42][%cal Oe4e5]} Bc3 {[%emt 0:01:28]} 34. hxg5 {[%emt 0:00:33]} hxg5 {[%emt 0:00:10] [#]} 35. e5 $1 {[%emt 0:00:03][%mdl 512]} fxe5 {[%emt 0:01:30]} 36. Nf3 {[%emt 0:00:06]} Bd5 {[%emt 0:06:17]} 37. Nxg5+ {[%emt 0:03:56]} Kf6 {[%emt 0:02:15]} 38. g4 {[%emt 0:00:25] Threatens to win with Rh8.} Rd7 {[%emt 0:02:20]} (38... Kg7 {is a better defense.} 39. Ke2 Bc4+ 40. Kf3 Bd5+ 41. Kf2 a5) 39. Rh8 $18 {[%emt 0:03:31]} e4 $2 {[%emt 0:03:01]} (39... Kg7 40. Rh7+ Kf8 41. Ne6+ (41. f6 Bg8 $18) 41... Kg8 42. Rg7+ Kh8) 40. Rh6+ {[%emt 0:00:32]} Ke5 {[%emt 0:00:34]} 41. Rh7 {[%emt 0:05:28]} Bg8 {[%emt 0:02:28]} 42. Rg7 {[%emt 0:00:14]} Bc4 {[%emt 0:01:04]} 43. Nh7 {[%emt 0:00:33] Weighted Error Value: White=0.10 (very precise) /Black=0.24 (precise) .  Mistake:       	White=1     	Black=4      Inaccurate:     	White=2     	Black=4      OK:         	White=20    	Black=14     Best:        	White=1     	---        Strong:       	White=2     	Black=1      Brilliant:      	White=1     	---} 1-0

[Event "III Menorca Open-A 2024"]
[Site "Ciutadella Menorca"]
[Date "2024.04.06"]
[Round "8.10"]
[White "Sokolovsky, Yahli"]
[Black "Murzin, Volodar"]
[Result "1/2-1/2"]
[ECO "B92"]
[WhiteElo "2490"]
[BlackElo "2632"]
[Annotator "TA"]
[PlyCount "45"]
[EventDate "2024.04.02"]
[EventType "swiss"]
[EventCountry "ESP"]
[SourceTitle "playchess.com"]
[Source "ChessBase"]
[SourceQuality "1"]
[TimeControl "5400+30"]

{[%evp 17,45,0,0,0,0,8,8,2,16,15,26,14,37,5,37,27,47,27,23,20,15,15,40,39,39,39,53,36,108,108]} 1. e4 {[%emt 0:00:03]} c5 {[%emt 0:00:05]} 2. Nf3 {[%emt 0:00:05]} d6 {[%emt 0:00:06]} 3. d4 {[%emt 0:00:05]} cxd4 {[%emt 0:00:04]} 4. Nxd4 {[%emt 0:00:05]} Nf6 {[%emt 0:00:04]} 5. Nc3 {[%emt 0:00:06]} a6 {[%emt 0:00:04]} 6. Be2 {[%emt 0:00:05]} e5 {[%emt 0:00:06]} 7. Nb3 {[%emt 0:00:05]} Be7 {[%emt 0:00:06]} 8. O-O {[%emt 0:00:11]} O-O {[%emt 0:00:43]} 9. Qd3 {[%emt 0:00:05]} Be6 {[%emt 0:00:17]} 10. Bd2 {[%emt 0:00:05]} Nbd7 {[%emt 0:00:32]} 11. Nd5 {[%emt 0:00:12]} Bxd5 {[%emt 0:00:08]} 12. exd5 {[%emt 0:00:04] The position is equal.} Qc7 {[%emt 0:00:19]} 13. c4 {[%emt 0:00:13]} a5 {[%emt 0:00:17]} 14. a4 {[%emt 0:00:45]} b6 {[%emt 0:00:36]} 15. Qh3 {[%emt 0:04:15]} Nc5 {[%emt 0:05:59]} 16. Nxc5 {[%emt 0:00:18]} bxc5 {[%emt 0:01:14]} 17. Rae1 {[%emt 0:11:06]} Qd7 {[%emt 0:07:23]} 18. Qxd7 {[%emt 0:09:46]} Nxd7 {[%emt 0:00:33]} 19. Bd1 {[%emt 0:00:50] Black is weak on the light squares} g6 {[%emt 0:11:36][%cal Bg7g6,Bg6g5][%mdl 32]} 20. g4 {[%emt 0:06:47]} Rfb8 {[%emt 0:17:04]} 21. b3 {[%emt 0:01:22]} g5 {[%emt 0:21:26]} 22. Kg2 {[%emt 0:12:09]} Nf8 {[%emt 0:11:20] [#]} (22... Re8 $14) 23. h4 $1 {[%emt 0:12:00][%mdl 512] Weighted Error Value: White=0.07 (flawless) /Black=0.15 (very precise) .  Mistake:       	---       	Black=1      Inaccurate:     	White=1     	Black=1      OK:         	White=3     	Black=4      Best:        	White=1     	---        Brilliant:      	White=1     	---} 1/2-1/2